[Event "Titled Tuesday Blitz November 01 Early 2022"]
[White "Salem, A.R. Saleh"]
[Black "Krishnan, Varun"]
[WhiteFideId "9301348"]
[BlackFideId "5054508"]
[WhiteElo "2628"]
[BlackElo "2536"]
[Result "1-0"]
[Round "01"]
[TimeControl "180+1"]
[Date "2022.11.01"]
[WhiteClock "0:01:34"]
[BlackClock "0:00:46"]

1. d4 {[%clk 0:03:00]}  d5 {[%clk 0:02:58]} 2. c4 {[%clk 0:03:00]}  e6 {[%clk 0:02:58]} 3. Nc3 {[%clk 0:03:00]}  Be7 {[%clk 0:02:58]} 4. cxd5 {[%clk 0:03:00]}  exd5 {[%clk 0:02:57]} 5. Bf4 {[%clk 0:03:01]}  Nf6 {[%clk 0:02:56]} 6. e3 {[%clk 0:03:02]}  Bf5 {[%clk 0:02:54]} 7. Nge2 {[%clk 0:02:54]}  O-O {[%clk 0:02:52]} 8. Ng3 {[%clk 0:02:54]}  Be6 {[%clk 0:02:52]} 9. Bd3 {[%clk 0:02:54]}  c6 {[%clk 0:02:48]} 10. h4 {[%clk 0:02:51]}  h6 {[%clk 0:02:42]} 11. Nf5 {[%clk 0:02:45]}  Bxf5 {[%clk 0:02:37]} 12. Bxf5 {[%clk 0:02:46]}  Bd6 {[%clk 0:02:37]} 13. Bxd6 {[%clk 0:02:42]}  Qxd6 {[%clk 0:02:38]} 14. g4 {[%clk 0:02:42]}  g6 {[%clk 0:02:31]} 15. Bd3 {[%clk 0:02:36]}  Nfd7 {[%clk 0:02:29]} 16. h5 {[%clk 0:02:33]}  Kg7 {[%clk 0:02:23]} 17. g5 {[%clk 0:02:26]}  hxg5 {[%clk 0:02:11]} 18. Qg4 {[%clk 0:02:26]}  Rh8 {[%clk 0:01:39]} 19. O-O-O {[%clk 0:02:21]}  Nf6 {[%clk 0:01:34]} 20. Qxg5 {[%clk 0:02:14]}  Nxh5 {[%clk 0:01:14]} 21. Rdg1 {[%clk 0:02:13]}  Kf8 {[%clk 0:01:14]} 22. f4 {[%clk 0:01:40]}  Nd7 {[%clk 0:01:02]} 23. f5 {[%clk 0:01:40]}  Qf6 {[%clk 0:00:55]} 24. fxg6 {[%clk 0:01:39]}  Qxg5 {[%clk 0:00:55]} 25. Rxg5 {[%clk 0:01:40]}  fxg6 {[%clk 0:00:55]} 26. Bxg6 {[%clk 0:01:40]}  Ndf6 {[%clk 0:00:50]} 27. Bxh5 {[%clk 0:01:40]}  Ke7 {[%clk 0:00:50]} 28. Rg7+ {[%clk 0:01:39]}  Kd6 {[%clk 0:00:51]} 29. Bf3 {[%clk 0:01:37]}  Rxh1+ {[%clk 0:00:50]} 30. Bxh1 {[%clk 0:01:38]}  b5 {[%clk 0:00:49]} 31. e4 {[%clk 0:01:36]}  dxe4 {[%clk 0:00:47]} 32. Rg6 {[%clk 0:01:36]}  Ke7 {[%clk 0:00:47]} 33. Nxe4 {[%clk 0:01:36]}  Nxe4 {[%clk 0:00:46]} 34. Bxe4 {[%clk 0:01:37]}  Rd8 {[%clk 0:00:47]} 35. Bxc6 {[%clk 0:01:34]}  b4 {[%clk 0:00:46]} 36. d5 {[%clk 0:01:34]} 1-0


[Site "https://www.chess.com"]

[Event "Titled Tuesday Blitz November 01 Early 2022"]
[White "Shandrygin, Nikita"]
[Black "Garayev, Kanan"]
[WhiteFideId "24198668"]
[BlackFideId "13406671"]
[WhiteElo "2323"]
[BlackElo "2244"]
[Result "0-1"]
[Round "01"]
[TimeControl "180+1"]
[Date "2022.11.02"]
[WhiteClock "0:00:05"]
[BlackClock "0:00:09"]

1. e4 {[%clk 0:03:00]}  e5 {[%clk 0:02:59]} 2. Nf3 {[%clk 0:03:00]}  Nf6 {[%clk 0:02:59]} 3. d4 {[%clk 0:02:59]}  Nxe4 {[%clk 0:02:59]} 4. Bd3 {[%clk 0:02:59]}  Nc6 {[%clk 0:02:58]} 5. dxe5 {[%clk 0:02:49]}  d5 {[%clk 0:02:55]} 6. exd6 {[%clk 0:02:46]}  Nxd6 {[%clk 0:02:55]} 7. O-O {[%clk 0:02:41]}  Be7 {[%clk 0:02:55]} 8. Nc3 {[%clk 0:02:37]}  O-O {[%clk 0:02:54]} 9. Nd5 {[%clk 0:02:37]}  Bf5 {[%clk 0:02:51]} 10. Nxe7+ {[%clk 0:02:30]}  Nxe7 {[%clk 0:02:48]} 11. Bf4 {[%clk 0:02:16]}  Ng6 {[%clk 0:01:53]} 12. Bxd6 {[%clk 0:01:33]}  Bxd3 {[%clk 0:01:51]} 13. Qxd3 {[%clk 0:01:31]}  Qxd6 {[%clk 0:01:45]} 14. Qxd6 {[%clk 0:01:30]}  cxd6 {[%clk 0:01:45]} 15. Rad1 {[%clk 0:01:30]}  Rfd8 {[%clk 0:01:40]} 16. Nd4 {[%clk 0:01:27]}  Rac8 {[%clk 0:01:31]} 17. c3 {[%clk 0:01:26]}  a6 {[%clk 0:01:31]} 18. Rd2 {[%clk 0:01:23]}  d5 {[%clk 0:01:25]} 19. Rfd1 {[%clk 0:01:22]}  Rd7 {[%clk 0:01:24]} 20. Nb3 {[%clk 0:01:19]}  Ne7 {[%clk 0:01:22]} 21. f3 {[%clk 0:01:16]}  f6 {[%clk 0:01:14]} 22. Kf2 {[%clk 0:01:15]}  Kf7 {[%clk 0:01:13]} 23. g4 {[%clk 0:01:14]}  b6 {[%clk 0:01:12]} 24. h4 {[%clk 0:01:13]}  Rc4 {[%clk 0:01:07]} 25. Rd4 {[%clk 0:01:12]}  Rxd4 {[%clk 0:00:56]} 26. Nxd4 {[%clk 0:01:08]}  Ng6 {[%clk 0:00:57]} 27. Kg3 {[%clk 0:01:08]}  Ne5 {[%clk 0:00:54]} 28. Nf5 {[%clk 0:01:07]}  g6 {[%clk 0:00:53]} 29. Ne3 {[%clk 0:01:07]}  Ke6 {[%clk 0:00:53]} 30. f4 {[%clk 0:01:06]}  Nc6 {[%clk 0:00:49]} 31. f5+ {[%clk 0:01:06]}  gxf5 {[%clk 0:00:50]} 32. Nxf5 {[%clk 0:01:05]}  Ne5 {[%clk 0:00:48]} 33. Nd4+ {[%clk 0:00:58]}  Kf7 {[%clk 0:00:48]} 34. Rf1 {[%clk 0:00:58]}  Nc4 {[%clk 0:00:43]} 35. g5 {[%clk 0:00:55]}  Rd6 {[%clk 0:00:41]} 36. b3 {[%clk 0:00:36]}  Nd2 {[%clk 0:00:39]} 37. Rf4 {[%clk 0:00:28]}  Ne4+ {[%clk 0:00:39]} 38. Kg4 {[%clk 0:00:28]}  Kg8 {[%clk 0:00:32]} 39. gxf6 {[%clk 0:00:20]}  Nxf6+ {[%clk 0:00:33]} 40. Kf5 {[%clk 0:00:20]}  Ne4 {[%clk 0:00:29]} 41. Ke5 {[%clk 0:00:20]}  Rd8 {[%clk 0:00:26]} 42. Ne6 {[%clk 0:00:16]}  Re8 {[%clk 0:00:23]} 43. c4 {[%clk 0:00:17]}  Nc5 {[%clk 0:00:19]} 44. cxd5 {[%clk 0:00:17]}  Nd3+ {[%clk 0:00:20]} 45. Ke4 {[%clk 0:00:17]}  Nxf4 {[%clk 0:00:21]} 46. Kxf4 {[%clk 0:00:18]}  Kf7 {[%clk 0:00:21]} 47. Ke5 {[%clk 0:00:18]}  Ke7 {[%clk 0:00:18]} 48. Ng5 {[%clk 0:00:17]}  Kd7+ {[%clk 0:00:18]} 49. Kd4 {[%clk 0:00:18]}  h6 {[%clk 0:00:18]} 50. Ne4 {[%clk 0:00:18]}  Rf8 {[%clk 0:00:18]} 51. Ke5 {[%clk 0:00:18]}  Re8+ {[%clk 0:00:19]} 52. Kf5 {[%clk 0:00:18]}  Rf8+ {[%clk 0:00:18]} 53. Kg6 {[%clk 0:00:19]}  Rf4 {[%clk 0:00:19]} 54. Nf6+ {[%clk 0:00:18]}  Kd6 {[%clk 0:00:19]} 55. h5 {[%clk 0:00:19]}  Ke7 {[%clk 0:00:18]} 56. Ng8+ {[%clk 0:00:19]}  Kd6 {[%clk 0:00:17]} 57. Nxh6 {[%clk 0:00:19]}  Kxd5 {[%clk 0:00:18]} 58. Nf5 {[%clk 0:00:18]}  Ke5 {[%clk 0:00:16]} 59. Ne3 {[%clk 0:00:09]}  Ke6 {[%clk 0:00:15]} 60. h6 {[%clk 0:00:09]}  Re4 {[%clk 0:00:16]} 61. Nc4 {[%clk 0:00:06]}  Rg4+ {[%clk 0:00:16]} 62. Kh5 {[%clk 0:00:06]}  Rg1 {[%clk 0:00:14]} 63. h7 {[%clk 0:00:06]}  Kf7 {[%clk 0:00:09]} 64. Ne5+ {[%clk 0:00:05]}  Kg7 {[%clk 0:00:09]} 65. h8=Q+ {[%clk 0:00:05]}  Kxh8 {[%clk 0:00:09]} 66. Nd7 {[%clk 0:00:06]}  b5 {[%clk 0:00:08]} 67. Nc5 {[%clk 0:00:06]}  a5 {[%clk 0:00:09]} 68. a4 {[%clk 0:00:04]}  b4 {[%clk 0:00:07]} 69. Nb7 {[%clk 0:00:02]}  Rc1 {[%clk 0:00:07]} 70. Kg4 {[%clk 0:00:01]}  Rc3 {[%clk 0:00:07]} 71. Nxa5 {[%clk 0:00:02]}  Rc5 {[%clk 0:00:08]} 72. Nc4 {[%clk 0:00:01]}  Rxc4+ {[%clk 0:00:08]} 73. bxc4 {[%clk 0:00:01]}  b3 {[%clk 0:00:09]} 74. c5 {[%clk 0:00:02]}  b2 {[%clk 0:00:10]} 75. c6 {[%clk 0:00:03]}  b1=Q {[%clk 0:00:10]} 76. c7 {[%clk 0:00:04]}  Qc2 {[%clk 0:00:09]} 77. c8=Q+ {[%clk 0:00:05]}  Qxc8+ {[%clk 0:00:09]} 0-1


[Site "https://www.chess.com"]

[Event "Titled Tuesday Blitz November 01 Early 2022"]
[White "Shimelkov, Vasiliy"]
[Black "Fawzy, Adham"]
[WhiteFideId "13701630"]
[BlackFideId "10613129"]
[WhiteElo "2073"]
[BlackElo "2541"]
[Result "1/2-1/2"]
[Round "01"]
[TimeControl "180+1"]
[Date "2022.11.02"]
[WhiteClock "0:00:09"]
[BlackClock "0:00:09"]

1. d4 {[%clk 0:03:00]}  d5 {[%clk 0:02:57]} 2. Nf3 {[%clk 0:03:00]}  Nf6 {[%clk 0:02:57]} 3. c4 {[%clk 0:03:00]}  c6 {[%clk 0:02:57]} 4. Nc3 {[%clk 0:02:59]}  e6 {[%clk 0:02:55]} 5. Bg5 {[%clk 0:02:57]}  Nbd7 {[%clk 0:02:55]} 6. e3 {[%clk 0:02:56]}  Qa5 {[%clk 0:02:54]} 7. Nd2 {[%clk 0:02:56]}  Bb4 {[%clk 0:02:53]} 8. Qc2 {[%clk 0:02:56]}  dxc4 {[%clk 0:02:52]} 9. Bxf6 {[%clk 0:02:55]}  Nxf6 {[%clk 0:02:53]} 10. Nxc4 {[%clk 0:02:48]}  Qc7 {[%clk 0:02:52]} 11. Be2 {[%clk 0:02:20]}  O-O {[%clk 0:02:47]} 12. O-O {[%clk 0:02:19]}  Be7 {[%clk 0:02:17]} 13. Rfd1 {[%clk 0:02:12]}  Bd7 {[%clk 0:02:16]} 14. h3 {[%clk 0:02:10]}  c5 {[%clk 0:02:08]} 15. Rac1 {[%clk 0:02:03]}  cxd4 {[%clk 0:02:00]} 16. exd4 {[%clk 0:01:57]}  Bc6 {[%clk 0:01:41]} 17. Ne5 {[%clk 0:01:47]}  Rfd8 {[%clk 0:01:14]} 18. a3 {[%clk 0:01:31]}  Qd6 {[%clk 0:01:07]} 19. b4 {[%clk 0:01:26]}  Bd5 {[%clk 0:01:05]} 20. Qb2 {[%clk 0:01:15]}  a6 {[%clk 0:01:01]} 21. Nxd5 {[%clk 0:01:04]}  Nxd5 {[%clk 0:00:58]} 22. Bf3 {[%clk 0:01:03]}  Rac8 {[%clk 0:00:56]} 23. Rc5 {[%clk 0:00:48]}  b6 {[%clk 0:00:47]} 24. Nc4 {[%clk 0:00:42]}  Qb8 {[%clk 0:00:29]} 25. Rxc8 {[%clk 0:00:39]}  Rxc8 {[%clk 0:00:29]} 26. Ne5 {[%clk 0:00:31]}  Qc7 {[%clk 0:00:18]} 27. Be2 {[%clk 0:00:18]}  b5 {[%clk 0:00:15]} 28. Nd3 {[%clk 0:00:18]}  Qc2 {[%clk 0:00:13]} 29. Rd2 {[%clk 0:00:15]}  Qxb2 {[%clk 0:00:13]} 30. Rxb2 {[%clk 0:00:15]}  Rc3 {[%clk 0:00:12]} 31. Nc5 {[%clk 0:00:12]}  Bxc5 {[%clk 0:00:11]} 32. dxc5 {[%clk 0:00:12]}  Rxa3 {[%clk 0:00:11]} 33. Bf3 {[%clk 0:00:11]}  Rc3 {[%clk 0:00:09]} 34. Bxd5 {[%clk 0:00:10]}  exd5 {[%clk 0:00:10]} 35. Ra2 {[%clk 0:00:11]}  g6 {[%clk 0:00:08]} 36. Rxa6 {[%clk 0:00:10]}  Rc4 {[%clk 0:00:08]} 37. Rd6 {[%clk 0:00:10]}  Rxb4 {[%clk 0:00:08]} 38. Rxd5 {[%clk 0:00:10]}  Rc4 {[%clk 0:00:09]} 39. c6 {[%clk 0:00:09]}  Rxc6 {[%clk 0:00:09]} 40. Rxb5 {[%clk 0:00:09]} 1/2-1/2


[Site "https://www.chess.com"]

[Event "Titled Tuesday Blitz November 01 Early 2022"]
[White "Skuhala, Jernej"]
[Black "Oganian, Miran"]
[WhiteFideId "14605651"]
[BlackFideId "4122488"]
[WhiteElo "2420"]
[BlackElo "2339"]
[Result "1-0"]
[Round "01"]
[TimeControl "180+1"]
[Date "2022.11.02"]
[WhiteClock "0:00:38"]
[BlackClock "0:01:13"]

1. e4 {[%clk 0:03:00]}  e6 {[%clk 0:03:00]} 2. d4 {[%clk 0:02:53]}  d5 {[%clk 0:03:00]} 3. Nd2 {[%clk 0:02:53]}  Nf6 {[%clk 0:02:59]} 4. e5 {[%clk 0:02:53]}  Nfd7 {[%clk 0:03:00]} 5. Bd3 {[%clk 0:02:48]}  c5 {[%clk 0:03:01]} 6. c3 {[%clk 0:02:49]}  Nc6 {[%clk 0:03:00]} 7. Ne2 {[%clk 0:02:46]}  cxd4 {[%clk 0:03:00]} 8. cxd4 {[%clk 0:02:47]}  f6 {[%clk 0:03:01]} 9. Nf4 {[%clk 0:02:45]}  Nxd4 {[%clk 0:03:01]} 10. Qh5+ {[%clk 0:02:43]}  Ke7 {[%clk 0:03:01]} 11. Ng6+ {[%clk 0:02:42]}  hxg6 {[%clk 0:03:01]} 12. exf6+ {[%clk 0:02:42]}  Nxf6 {[%clk 0:03:02]} 13. Qxh8 {[%clk 0:02:42]}  Kf7 {[%clk 0:03:02]} 14. O-O {[%clk 0:02:42]}  e5 {[%clk 0:03:02]} 15. Nf3 {[%clk 0:02:17]}  Nxf3+ {[%clk 0:03:02]} 16. gxf3 {[%clk 0:02:18]}  Bf5 {[%clk 0:03:02]} 17. Bxf5 {[%clk 0:02:17]}  gxf5 {[%clk 0:03:03]} 18. Qh4 {[%clk 0:02:16]}  Be7 {[%clk 0:03:02]} 19. Bg5 {[%clk 0:02:16]}  Qh8 {[%clk 0:02:52]} 20. Rac1 {[%clk 0:02:10]}  Qxh4 {[%clk 0:02:50]} 21. Bxh4 {[%clk 0:02:11]}  Bd6 {[%clk 0:02:48]} 22. Bxf6 {[%clk 0:02:03]}  gxf6 {[%clk 0:02:47]} 23. Rfd1 {[%clk 0:02:02]}  Ke6 {[%clk 0:02:47]} 24. Kf1 {[%clk 0:02:00]}  e4 {[%clk 0:02:45]} 25. fxe4 {[%clk 0:01:59]}  fxe4 {[%clk 0:02:46]} 26. h3 {[%clk 0:01:56]}  f5 {[%clk 0:02:46]} 27. Ke2 {[%clk 0:01:56]}  f4 {[%clk 0:02:45]} 28. Rg1 {[%clk 0:01:50]}  f3+ {[%clk 0:02:44]} 29. Ke3 {[%clk 0:01:48]}  Be5 {[%clk 0:02:41]} 30. b3 {[%clk 0:01:41]}  Kf5 {[%clk 0:02:39]} 31. Rc5 {[%clk 0:01:41]}  Rd8 {[%clk 0:02:22]} 32. h4 {[%clk 0:01:41]}  d4+ {[%clk 0:02:10]} 33. Kd2 {[%clk 0:01:42]}  Kf4 {[%clk 0:02:10]} 34. Rg5 {[%clk 0:01:26]}  Re8 {[%clk 0:02:04]} 35. Ke1 {[%clk 0:01:26]}  e3 {[%clk 0:01:50]} 36. fxe3+ {[%clk 0:01:26]}  Ke4 {[%clk 0:01:30]} 37. Rcxe5+ {[%clk 0:00:50]}  Rxe5 {[%clk 0:01:29]} 38. Rxe5+ {[%clk 0:00:51]}  Kxe5 {[%clk 0:01:30]} 39. Kf2 {[%clk 0:00:52]}  d3 {[%clk 0:01:22]} 40. Kxf3 {[%clk 0:00:50]}  Kd5 {[%clk 0:01:17]} 41. h5 {[%clk 0:00:48]}  Ke5 {[%clk 0:01:17]} 42. e4 {[%clk 0:00:38]}  Kd4 {[%clk 0:01:17]} 43. h6 {[%clk 0:00:38]}  Kc3 {[%clk 0:01:12]} 44. h7 {[%clk 0:00:39]}  d2 {[%clk 0:01:12]} 45. h8=Q+ {[%clk 0:00:40]}  Kc2 {[%clk 0:01:13]} 46. Qc8+ {[%clk 0:00:39]}  Kb1 {[%clk 0:01:13]} 47. Ke2 {[%clk 0:00:38]} 1-0


[Site "https://www.chess.com"]

[Event "Titled Tuesday Blitz November 01 Early 2022"]
[White "Sourath Biswas"]
[Black "Mosutha, Thuso"]
[WhiteFideId "35091484"]
[BlackFideId "11302550"]
[WhiteElo "2164"]
[BlackElo "2028"]
[Result "1-0"]
[Round "01"]
[TimeControl "180+1"]
[Date "2022.11.02"]
[WhiteClock "0:00:33"]
[BlackClock "0:00:04"]

1. d4 {[%clk 0:03:00]}  d5 {[%clk 0:02:59]} 2. Bf4 {[%clk 0:02:59]}  c5 {[%clk 0:02:58]} 3. e3 {[%clk 0:02:58]}  Nc6 {[%clk 0:02:57]} 4. Nf3 {[%clk 0:02:56]}  Nf6 {[%clk 0:02:56]} 5. Nbd2 {[%clk 0:02:55]}  g6 {[%clk 0:02:56]} 6. dxc5 {[%clk 0:02:55]}  Bg7 {[%clk 0:02:56]} 7. c3 {[%clk 0:02:55]}  a5 {[%clk 0:02:55]} 8. Bb5 {[%clk 0:02:53]}  O-O {[%clk 0:02:55]} 9. O-O {[%clk 0:02:53]}  Nh5 {[%clk 0:02:54]} 10. Bg5 {[%clk 0:02:52]}  h6 {[%clk 0:02:52]} 11. Bh4 {[%clk 0:02:52]}  g5 {[%clk 0:02:53]} 12. Nd4 {[%clk 0:02:53]}  Nf6 {[%clk 0:02:35]} 13. Bg3 {[%clk 0:02:46]}  Bd7 {[%clk 0:02:35]} 14. a4 {[%clk 0:02:42]}  Re8 {[%clk 0:02:32]} 15. Bxc6 {[%clk 0:02:35]}  Bxc6 {[%clk 0:02:32]} 16. Be5 {[%clk 0:02:32]}  Nd7 {[%clk 0:02:28]} 17. Bxg7 {[%clk 0:02:32]}  Kxg7 {[%clk 0:02:29]} 18. Nf5+ {[%clk 0:02:23]}  Kf6 {[%clk 0:02:07]} 19. Nxh6 {[%clk 0:02:22]}  Nxc5 {[%clk 0:02:07]} 20. Qh5 {[%clk 0:02:17]}  Rf8 {[%clk 0:01:55]} 21. Ng4+ {[%clk 0:02:16]}  Kf5 {[%clk 0:01:52]} 22. f4 {[%clk 0:02:16]}  Ke6 {[%clk 0:01:49]} 23. Ne5 {[%clk 0:01:59]}  f6 {[%clk 0:01:43]} 24. Qh3+ {[%clk 0:01:32]}  Kd6 {[%clk 0:01:39]} 25. Nef3 {[%clk 0:01:29]}  gxf4 {[%clk 0:01:36]} 26. exf4 {[%clk 0:01:28]}  Kc7 {[%clk 0:01:29]} 27. Nd4 {[%clk 0:01:27]}  e5 {[%clk 0:01:22]} 28. fxe5 {[%clk 0:01:24]}  fxe5 {[%clk 0:01:21]} 29. Qg3 {[%clk 0:01:25]}  Qd6 {[%clk 0:01:18]} 30. Nf5 {[%clk 0:01:24]}  Qe6 {[%clk 0:01:13]} 31. Rae1 {[%clk 0:01:15]}  Rxf5 {[%clk 0:00:46]} 32. Rxf5 {[%clk 0:01:15]}  Qxf5 {[%clk 0:00:46]} 33. Rxe5 {[%clk 0:01:13]}  Qc2 {[%clk 0:00:46]} 34. Re2+ {[%clk 0:00:50]}  Kd8 {[%clk 0:00:23]} 35. Qh4+ {[%clk 0:00:33]}  Kc7 {[%clk 0:00:20]} 36. Qf4+ {[%clk 0:00:33]}  Kd8 {[%clk 0:00:18]} 37. Qf8+ {[%clk 0:00:33]}  Kc7 {[%clk 0:00:18]} 38. Qxc5 {[%clk 0:00:32]}  Qd1+ {[%clk 0:00:17]} 39. Kf2 {[%clk 0:00:33]}  Rd8 {[%clk 0:00:07]} 40. Nf3 {[%clk 0:00:33]}  Qd3 {[%clk 0:00:05]} 41. Re7+ {[%clk 0:00:33]}  Kb8 {[%clk 0:00:04]} 42. Qb6 {[%clk 0:00:33]}  Qc2+ {[%clk 0:00:04]} 43. Re2 {[%clk 0:00:33]} 1-0


[Site "https://www.chess.com"]

[Event "Titled Tuesday Blitz November 01 Early 2022"]
[White "Suleymanli, Aydin"]
[Black "Winterberg, Lukas"]
[WhiteFideId "13413937"]
[BlackFideId "24622702"]
[WhiteElo "2481"]
[BlackElo "2349"]
[Result "1-0"]
[Round "01"]
[TimeControl "180+1"]
[Date "2022.11.01"]
[WhiteClock "0:00:54"]
[BlackClock "0:00:21"]

1. e4 {[%clk 0:02:59]}  e6 {[%clk 0:02:59]} 2. d4 {[%clk 0:02:58]}  d5 {[%clk 0:03:00]} 3. Nc3 {[%clk 0:02:58]}  Nf6 {[%clk 0:03:00]} 4. e5 {[%clk 0:02:57]}  Nfd7 {[%clk 0:03:00]} 5. f4 {[%clk 0:02:54]}  c5 {[%clk 0:03:01]} 6. Nf3 {[%clk 0:02:54]}  Nc6 {[%clk 0:03:01]} 7. Be3 {[%clk 0:02:55]}  a6 {[%clk 0:03:02]} 8. Be2 {[%clk 0:02:51]}  cxd4 {[%clk 0:02:59]} 9. Nxd4 {[%clk 0:02:52]}  Bc5 {[%clk 0:02:56]} 10. Qd2 {[%clk 0:02:48]}  O-O {[%clk 0:02:52]} 11. a3 {[%clk 0:02:24]}  Nxd4 {[%clk 0:02:46]} 12. Bxd4 {[%clk 0:02:09]}  b5 {[%clk 0:02:42]} 13. O-O {[%clk 0:02:07]}  Qb6 {[%clk 0:02:28]} 14. Rad1 {[%clk 0:01:56]}  Bb7 {[%clk 0:02:21]} 15. Kh1 {[%clk 0:01:47]}  Bxd4 {[%clk 0:02:12]} 16. Qxd4 {[%clk 0:01:48]}  Qxd4 {[%clk 0:02:13]} 17. Rxd4 {[%clk 0:01:48]}  Nb6 {[%clk 0:01:46]} 18. b3 {[%clk 0:01:32]}  Rfc8 {[%clk 0:01:44]} 19. Rf3 {[%clk 0:01:32]}  Rc7 {[%clk 0:01:42]} 20. Bd1 {[%clk 0:01:28]}  Rac8 {[%clk 0:01:38]} 21. Ne2 {[%clk 0:01:22]}  Nd7 {[%clk 0:01:32]} 22. Kg1 {[%clk 0:01:20]}  f6 {[%clk 0:01:23]} 23. Re3 {[%clk 0:01:18]}  fxe5 {[%clk 0:01:20]} 24. fxe5 {[%clk 0:01:19]}  Nc5 {[%clk 0:01:10]} 25. Nf4 {[%clk 0:01:15]}  Re8 {[%clk 0:01:10]} 26. Rc3 {[%clk 0:01:12]}  Rcc8 {[%clk 0:01:04]} 27. Bg4 {[%clk 0:01:08]}  Kf7 {[%clk 0:00:59]} 28. Rh3 {[%clk 0:00:56]}  Nd7 {[%clk 0:00:42]} 29. Bh5+ {[%clk 0:00:54]}  g6 {[%clk 0:00:40]} 30. Bxg6+ {[%clk 0:00:55]}  Kf8 {[%clk 0:00:21]} 31. Bxe8 {[%clk 0:00:54]} 1-0


[Site "https://www.chess.com"]

[Event "Titled Tuesday Blitz November 01 Early 2022"]
[White "Szente Varga, Fruzsina"]
[Black "Volkov, Maksim"]
[WhiteFideId "712264"]
[BlackFideId "54123070"]
[WhiteElo "1994"]
[BlackElo "2257"]
[Result "0-1"]
[Round "01"]
[TimeControl "180+1"]
[Date "2022.11.02"]
[WhiteClock "0:00:14"]
[BlackClock "0:01:08"]

1. e4 {[%clk 0:03:00]}  c5 {[%clk 0:02:59]} 2. Nf3 {[%clk 0:03:00]}  d6 {[%clk 0:02:59]} 3. d4 {[%clk 0:03:00]}  cxd4 {[%clk 0:02:58]} 4. Qxd4 {[%clk 0:03:00]}  Nc6 {[%clk 0:02:56]} 5. Bb5 {[%clk 0:03:00]}  Bd7 {[%clk 0:02:52]} 6. Qd3 {[%clk 0:03:00]}  Nf6 {[%clk 0:02:49]} 7. c4 {[%clk 0:02:51]}  g6 {[%clk 0:02:37]} 8. Nc3 {[%clk 0:02:46]}  Bg7 {[%clk 0:02:37]} 9. O-O {[%clk 0:02:38]}  O-O {[%clk 0:02:37]} 10. Rb1 {[%clk 0:02:35]}  a6 {[%clk 0:02:29]} 11. Bxc6 {[%clk 0:02:35]}  Bxc6 {[%clk 0:02:29]} 12. b4 {[%clk 0:02:32]}  Nd7 {[%clk 0:02:27]} 13. Nd4 {[%clk 0:01:59]}  Ne5 {[%clk 0:02:21]} 14. Qe2 {[%clk 0:01:58]}  Bd7 {[%clk 0:02:19]} 15. f4 {[%clk 0:01:41]}  Ng4 {[%clk 0:02:03]} 16. Rd1 {[%clk 0:01:36]}  Qb6 {[%clk 0:01:57]} 17. Be3 {[%clk 0:00:51]}  Nxe3 {[%clk 0:01:56]} 18. Qxe3 {[%clk 0:00:51]}  Rac8 {[%clk 0:01:41]} 19. Nd5 {[%clk 0:00:46]}  Qd8 {[%clk 0:01:41]} 20. Qd3 {[%clk 0:00:39]}  e6 {[%clk 0:01:41]} 21. Ne3 {[%clk 0:00:38]}  h5 {[%clk 0:01:27]} 22. f5 {[%clk 0:00:37]}  Qg5 {[%clk 0:01:24]} 23. Nf3 {[%clk 0:00:36]}  Qf4 {[%clk 0:01:22]} 24. Rb3 {[%clk 0:00:21]}  Ba4 {[%clk 0:01:15]} 25. Qxd6 {[%clk 0:00:18]}  Qxe4 {[%clk 0:01:14]} 26. Rbd3 {[%clk 0:00:15]}  Bxd1 {[%clk 0:01:14]} 27. Nxd1 {[%clk 0:00:15]}  gxf5 {[%clk 0:01:11]} 28. c5 {[%clk 0:00:15]}  Qxb4 {[%clk 0:01:10]} 29. Ng5 {[%clk 0:00:15]}  Qxc5+ {[%clk 0:01:07]} 30. Qxc5 {[%clk 0:00:14]}  Rxc5 {[%clk 0:01:08]} 0-1


[Site "https://www.chess.com"]

[Event "Titled Tuesday Blitz November 01 Early 2022"]
[White "Tarasova, Viktoriya"]
[Black "Stoyanov, Tsvetan"]
[WhiteFideId "4175840"]
[BlackFideId "2917173"]
[WhiteElo "2182"]
[BlackElo "2349"]
[Result "0-1"]
[Round "01"]
[TimeControl "180+1"]
[Date "2022.11.02"]
[WhiteClock "0:00:07"]
[BlackClock "0:00:08"]

1. d4 {[%clk 0:03:00]}  Nf6 {[%clk 0:02:58]} 2. c4 {[%clk 0:03:00]}  e6 {[%clk 0:02:59]} 3. Nc3 {[%clk 0:03:00]}  Bb4 {[%clk 0:02:58]} 4. Nf3 {[%clk 0:03:00]}  O-O {[%clk 0:02:55]} 5. Bg5 {[%clk 0:02:59]}  d5 {[%clk 0:02:54]} 6. cxd5 {[%clk 0:02:59]}  exd5 {[%clk 0:02:54]} 7. Qc2 {[%clk 0:02:58]}  h6 {[%clk 0:02:51]} 8. Bh4 {[%clk 0:02:58]}  Be7 {[%clk 0:02:40]} 9. e3 {[%clk 0:02:57]}  c6 {[%clk 0:02:40]} 10. Bd3 {[%clk 0:02:56]}  Nbd7 {[%clk 0:02:40]} 11. O-O {[%clk 0:02:55]}  a5 {[%clk 0:02:40]} 12. Rab1 {[%clk 0:02:54]}  Re8 {[%clk 0:02:40]} 13. a3 {[%clk 0:02:54]}  b5 {[%clk 0:02:13]} 14. h3 {[%clk 0:02:45]}  Qb6 {[%clk 0:02:03]} 15. Rfc1 {[%clk 0:02:44]}  Bb7 {[%clk 0:01:58]} 16. Ne2 {[%clk 0:02:27]}  c5 {[%clk 0:01:48]} 17. Bxf6 {[%clk 0:02:06]}  gxf6 {[%clk 0:01:39]} 18. Bf5 {[%clk 0:02:02]}  Red8 {[%clk 0:01:27]} 19. Bxd7 {[%clk 0:01:59]}  Rxd7 {[%clk 0:01:27]} 20. dxc5 {[%clk 0:02:00]}  Qa7 {[%clk 0:01:17]} 21. c6 {[%clk 0:01:47]}  Rc8 {[%clk 0:01:15]} 22. cxd7 {[%clk 0:01:22]}  Rxc2 {[%clk 0:01:14]} 23. Rxc2 {[%clk 0:01:23]}  Qb6 {[%clk 0:00:52]} 24. Rbc1 {[%clk 0:01:11]}  Kh7 {[%clk 0:00:32]} 25. Ned4 {[%clk 0:01:03]}  Bd8 {[%clk 0:00:19]} 26. Rc8 {[%clk 0:00:55]}  b4 {[%clk 0:00:15]} 27. a4 {[%clk 0:00:45]}  Be7 {[%clk 0:00:13]} 28. Nf5 {[%clk 0:00:28]}  Qe6 {[%clk 0:00:12]} 29. Nxe7 {[%clk 0:00:23]}  Qxd7 {[%clk 0:00:12]} 30. R8c7 {[%clk 0:00:23]}  Qxa4 {[%clk 0:00:11]} 31. Nf5 {[%clk 0:00:21]}  Ba6 {[%clk 0:00:06]} 32. Rxf7+ {[%clk 0:00:20]}  Kg6 {[%clk 0:00:06]} 33. g4 {[%clk 0:00:18]}  Kxf7 {[%clk 0:00:06]} 34. Nxh6+ {[%clk 0:00:17]}  Ke7 {[%clk 0:00:06]} 35. Nf5+ {[%clk 0:00:17]}  Kd7 {[%clk 0:00:07]} 36. N3d4 {[%clk 0:00:17]}  Qa2 {[%clk 0:00:07]} 37. Rc5 {[%clk 0:00:16]}  Qxb2 {[%clk 0:00:07]} 38. Rxd5+ {[%clk 0:00:16]}  Kc7 {[%clk 0:00:07]} 39. Rc5+ {[%clk 0:00:15]}  Kb6 {[%clk 0:00:07]} 40. Rc6+ {[%clk 0:00:16]}  Ka7 {[%clk 0:00:08]} 41. Rxf6 {[%clk 0:00:15]}  a4 {[%clk 0:00:08]} 42. Rf7+ {[%clk 0:00:15]}  Kb6 {[%clk 0:00:08]} 43. Rf6+ {[%clk 0:00:16]}  Ka7 {[%clk 0:00:08]} 44. Rf7+ {[%clk 0:00:16]}  Bb7 {[%clk 0:00:08]} 45. Nd6 {[%clk 0:00:14]}  Qc1+ {[%clk 0:00:08]} 46. Kh2 {[%clk 0:00:14]}  Qh1+ {[%clk 0:00:08]} 47. Kg3 {[%clk 0:00:14]}  Qg2+ {[%clk 0:00:09]} 48. Kh4 {[%clk 0:00:14]}  b3 {[%clk 0:00:09]} 49. N4b5+ {[%clk 0:00:11]}  Kb6 {[%clk 0:00:09]} 50. Nc3 {[%clk 0:00:09]}  Bd5 {[%clk 0:00:08]} 51. Nxa4+ {[%clk 0:00:07]}  Ka5 {[%clk 0:00:08]} 52. Nc3 {[%clk 0:00:07]}  Bxf7 {[%clk 0:00:08]} 0-1


[Site "https://www.chess.com"]